Cogmind - Beta 14 @@@ ROGUE MODE // 2024.12.30 @ 21:09:56 Player: Nueadkie Result: Destroyed self with Grenade Launcher Performance ------------- Evolutions (1) 500 Regions Visited (2) 400 Robots Destroyed (26) 130 Value Destroyed (796) 796 Prototype IDs (5) 100 Alien Tech Used (0) 0 Bonus (0) 0 TOTAL SCORE: 1926 Bonus ------- None Cogmind --------- Core Integrity 0/400 Matter 240/300 Energy 100/100 System Corruption 0% Temperature Cool (0) Movement Core (150) Ox2 Location -9/Materials Parts ------- > --- POWER (1) -------- (None) > --- PROPULSION (4) --- (None) > --- UTILITY (2) ------ Improved Heat Sink Light Armor Plating > --- WEAPON (2) ------- Grenade Launcher > --- INVENTORY (5) ---- Light Nuclear Core Medium Matter Pod (100) High-capacity Matter Pod (200) Visual Processing Unit Peak State ------------ > --- POWER ------------ Light Nuclear Core > --- PROPULSION ------- Aluminum Leg Aluminum Leg Aluminum Leg Aluminum Leg > --- UTILITY ---------- Improved Heat Sink Medium Storage Unit > --- WEAPON ----------- Medium Laser Light Assault Rifle > --- INVENTORY -------- Light Nuclear Core Light Nuclear Core Improved Heat Sink High-capacity Storage Unit Medium Matter Pod Medium Matter Pod High-capacity Matter Pod Visual Processing Unit [Rating: 14] Favorites ----------- Power Ion Engine Engine Ion Engine Power Core Light Nuclear Core Propulsion Aluminum Leg Leg Aluminum Leg Utility Medium Storage Unit Device Improved Heat Sink Storage Medium Storage Unit Processor Visual Processing Unit Protection Weapon Shielding Weapon Assault Rifle Energy Gun Medium Laser Ballistic Gun Assault Rifle Launcher Grenade Launcher Build | -11 -10 -9 ------- Run | Yrd Mat Mat Slots Evolved 2 | . . 2 Power . | . . . Propulsion 2 | . . 2 Utility . | . . . Weapon . | . . . Parts Attached 27 | 6 13 8 Power 3 | 1 1 1 Engine 1 | 1 . . Core 2 | . 1 1 Reactor . | . . . Propulsion 9 | 2 5 2 Treads . | . . . Leg 9 | 2 5 2 Wheel . | . . . Hover . | . . . Flight . | . . . Utility 9 | 1 5 3 Device 2 | . 1 1 Storage 3 | 1 1 1 Processor 1 | . 1 . Hackware . | . . . Protection 3 | . 2 1 Artifact . | . . . Weapon 6 | 2 2 2 Energy Gun 1 | . 1 . Energy Cannon . | . . . Ballistic Gun 4 | 2 1 1 Ballistic Cannon . | . . . Launcher 1 | . . 1 Special Weapon . | . . . Impact Weapon . | . . . Slashing Weapon . | . . . Piercing Weapon . | . . . Special Melee Weapon . | . . . Unidentified Prototypes . | . . . Parts Lost 12 | . 3 9 Power 2 | . . 2 Propulsion 4 | . . 4 Utility 2 | . 1 1 Weapon 4 | . 2 2 Highest Loss Streak 9 | . 3 9 To Critical Strikes . | . . . Average Slot Usage (%) 90 | . 98 68 Engine 7 | . 9 . Core 5 | . 4 7 Leg 27 | . 28 25 Device 5 | . 4 7 Storage 13 | . 14 12 Protection 6 | . 8 1 Energy Gun 4 | . 4 6 Ballistic Gun 19 | . 23 6 Peak Build Rating 14 | 6 12 14 Average Rating 8 | 5 8 9 On Entrance 6 | . 6 12 Naked Turns . | . . . Heaviest Build 50 | 14 20 50 Greatest Support 40 | 20 20 40 Greatest Overweight (x) 16 | 1 . 16 Average Overweight (x) . | . . 1 Largest Inventory Capacity 20 | 8 10 20 Average Capacity 10 | 7 9 11 Most Carried 10 | 4 10 9 Average Carried 7 | 2 8 7 Final Capacity 10 | 8 10 5 Final Carried 10 | 4 10 4 Class Distribution -------------------- 60% | Mutant 39% | Scavenger-Mutant Dominant Class ---------------- Mutant | -10/Materials Scavenger-Mutant | -9/Materials Resources | -11 -10 -9 ----------- Run | Yrd Mat Mat Matter Collected 1113 | 161 590 362 Remotely . | . . . Salvage Created 993 | . 609 384 Parts 60 | . 40 20 Haulers Intercepted 1 | . 1 . Recyclers Shooed . | . . . Parts Field Recycled . | . . . Retrieved Matter . | . . . Parts Self-Destructed . | . . . Prevented . | . . . Kills | -11 -10 -9 ------- Run | Yrd Mat Mat Combat Hostiles Destroyed 19 | . 11 8 Guns 16 | . 11 5 AOE 3 | . . 3 Classes Destroyed 7 | . 5 2 Worker 1 | . 1 . Builder 2 | . 1 1 Hauler 1 | . 1 . Watcher 3 | . 2 1 Grunt 17 | . 11 6 Duelist 1 | . . 1 Sentry 1 | . . 1 Best Kill Streak 4 | . 4 3 Combat Bots Only 3 | . 3 3 Max Kills in Single Turn 2 | . 1 2 Gunslinging 1 | . . 1 Exploded 2 | . . 2 Melee . | . . . Uniques/NPCs Destroyed . | . . . Combat | -11 -10 -9 -------- Run | Yrd Mat Mat Hostile Shots Fired 182 | . 66 116 Missed 36 | . 11 25 Damage Taken 1869 | . 672 1197 Core 518 | . 116 402 Absorbed by Shields . | . . . Redirected to Shielding 65 | . 65 . Core Remaining (%) 76 | 100 53 . Volleys Fired 96 | . 60 36 Largest 2 | . 2 2 Hottest 70 | . 70 70 Shots Fired 174 | . 115 59 Gun 169 | . 115 54 Cannon . | . . . Launcher 5 | . . 5 Special . | . . . Kinetic 129 | . 101 28 Thermal 40 | . 14 26 Explosive 5 | . . 5 Electromagnetic . | . . . Robot Hit Streak 16 | . 16 14 Robot Miss Streak 7 | . 7 3 Penetration Max . | . . . Secondary Targets 2 | . 1 1 Max Gunslinging Chain 1 | . 1 1 Shots Hit Robots 114 | . 70 44 Core Hits 56 | . 30 26 Critical Kills 1 | . 1 . Critical Parts Destroyed . | . . . Critical Strikes 3 | . 2 1 Burn 2 | . 1 1 Destroy 1 | . 1 . Melee Attacks . | . . . Impact . | . . . Slashing . | . . . Piercing . | . . . Sneak Attacks . | . . . Combat Hostiles . | . . . Follow-up Attacks . | . . . Damage Inflicted 1547 | . 861 686 Guns 1293 | . 861 432 Cannons . | . . . Explosions 252 | . . 252 Melee . | . . . Ramming 2 | . . 2 Kinetic 922 | . 749 173 Thermal 371 | . 112 259 Explosive 252 | . . 252 Electromagnetic . | . . . Impact . | . . . Slashing . | . . . Piercing . | . . . Highest Corruption . | . . . Average Corruption . | . . . Corruption Purged . | . . . Corruption Blocked . | . . . Overload Shots . | . . . Overflow Damage . | . . . Projectiles . | . . . Explosions . | . . . Melee . | . . . Knockbacks . | . . . Impact . | . . . Kinetic . | . . . Secondary . | . . . Self-Inflicted Damage 63 | . . 63 Shots 4 | . . 4 Rammed 3 | . . 3 Targets Rammed 3 | . . 3 Kicked . | . . . Crushed . | . . . Highest Temperature 46 | . 18 46 Average Temperature 9 | . 6 15 Received Heat Transfer 903 | . 378 525 Siege Activations . | . . . Robots Corrupted . | . . . Combat Hostiles . | . . . Parts Fried . | . . . Impact Corruptions . | . . . Robots Melted . | . . . Combat Hostiles . | . . . Parts Melted 4 | . 2 2 Heat Transferred 1258 | . 407 851 Parts Sabotaged . | . . . Parts Stolen . | . . . Parts Stripped . | . . . Power Chain Reactions . | . . . Alert | -11 -10 -9 ------- Run | Yrd Mat Mat Peak Influence 229 | . 187 229 Initial 38 | . . 38 Average 78 | . 69 125 Maximum Alert Level 1 | . . 1 Low Security (%) 99 | 100 100 96 Level 1 . | . . 3 Level 2 . | . . . Level 3 . | . . . Level 4 . | . . . Level 5 . | . . . High Security . | . . . Max Security . | . . . Squads Dispatched 5 | . 4 1 Investigation 1 | . 1 . Extermination . | . . . Reinforcement 4 | . 3 1 Assault . | . . . Garrison . | . . . Intercept . | . . . Searches Triggered . | . . . Construction Impeded . | . . . Haulers Reinforced . | . . . Active Scanning Responses . | . . . Cargo Convoy Interrupts . | . . . Stealth | -11 -10 -9 --------- Run | Yrd Mat Mat Distress Signals . | . . . Communications Jammed . | . . . Distress Signals . | . . . Times Spotted 33 | . 20 13 Peak Tracking Total 6 | . 3 6 Tactical Retreats . | . . . Traps | -11 -10 -9 ------- Run | Yrd Mat Mat Traps Triggered 1 | . 1 . Indirectly . | . . . Trap Hack Attempts . | . . . Triggered . | . . . Disarmed . | . . . Reprogrammed . | . . . Reused . | . . . Traps Extracted . | . . . Installed . | . . . Triggered . | . . . Machines | -11 -10 -9 ---------- Run | Yrd Mat Mat Machines Disabled . | . . . Max in Single Turn . | . . . Machines Repaired . | . . . Machines Dismantled . | . . . Machines Sabotaged . | . . . Overloaded Fab Kills . | . . . Hacking | -11 -10 -9 --------- Run | Yrd Mat Mat Machines Accessed 7 | . 5 2 Terminals 5 | . 3 2 Fabricators . | . . . Repair Stations . | . . . Recycling Units 2 | . 2 . Scanalyzers . | . . . Garrison Access . | . . . Total Hacks 19 | . 13 6 Successful 8 | . 6 2 Failed 11 | . 7 4 Catastrophic . | . . . Database Lockouts . | . . . Manual . | . . . Terminals 13 | . 7 6 Fabricators . | . . . Repair Stations . | . . . Recycling Units 6 | . 6 . Scanalyzers . | . . . Garrison Access . | . . . Terminal Hacks 4 | . 2 2 Robot Analysis 1 | . 1 . Prototype ID Bank 3 | . 1 2 Fabricator Hacks . | . . . Repair Station Hacks . | . . . Recycling Unit Hacks 4 | . 4 . Process 1 | . 1 . Report Inventory 3 | . 3 . Scanalyzer . | . . . Garrison Access Hacks . | . . . Unauthorized Hacks . | . . . Terminals . | . . . Fabricators . | . . . Repair Stations . | . . . Recycling Units . | . . . Scanalyzers . | . . . Garrison Access . | . . . Data Cores Recovered . | . . . Used . | . . . Hacking Detections 6 | . 4 2 Full Trace Events . | . . . Feedback Events . | . . . Feedback Blocked . | . . . Robot Schematics Acquired . | . . . Robots Built . | . . . Authchips . | . . . Time . | . . . Total Robot Build Rating . | . . . Part Schematics Acquired . | . . . Parts Built . | . . . Authchips . | . . . Time . | . . . Total Part Build Rating . | . . . Parts Repaired . | . . . Time . | . . . Parts Recycled . | . . . Recycled Matter 140 | . 140 . Retrieved Matter . | . . . Retrieved Components . | . . . Parts Scanalyzed . | . . . Part Schematics Acquired . | . . . Parts Damaged . | . . . Bothacking | -11 -10 -9 ------------ Run | Yrd Mat Mat Used RIF Installer . | . . . Robots Hacked . | . . . Non-combat . | . . . Combat . | . . . Robot Hacks Applied . | . . . Relay Couplers Released . | . . . Fabnet Peak Effective % . | . . . Robots Rewired . | . . . Allies Hacked . | . . . Hacks Repelled . | . . . Allies | -11 -10 -9 -------- Run | Yrd Mat Mat Total Allies . | . . . Largest Group . | . . . Highest-Rated Group . | . . . Highest-Rated Ally . | . . . Total Orders . | . . . Ally Attacks . | . . . Total Damage . | . . . Kills . | . . . Allies Corrupted . | . . . Allies Melted . | . . . Intel | -11 -10 -9 ------- Run | Yrd Mat Mat Robot Analysis Total 1 | . 1 . Derelict Logs Recovered . | . . . Drone Launches . | . . . Drone Recoveries . | . . . Exploration | -11 -10 -9 ------------- Run | Yrd Mat Mat Turns Passed 1370 | 80 972 318 Spaces Moved 780 | 56 615 109 Core 34 | 2 . 32 Treads . | . . . Legs 746 | 54 615 77 Wheels . | . . . Hover . | . . . Flight . | . . . Fastest Speed 50 | 50 120 100 Average Speed 124 | 120 120 149 Slowest Speed 850 | 190 120 850 Overloaded Moves . | . . . Propulsion Burnouts . | . . . Robots Hopped . | . . . Cave-ins Triggered . | . . . Exploration Rate (%) 32 | 4 85 9 Regions Visited 2 Branch Regions . Pre-discovered Areas . | . . . Known Exits Taken . | . . . Unknown Exits Taken 2 | 1 1 . Scrap Searched . | . . . Spaces Dug . | . . . Terrain Destroyed 17 | . . 17 Melee . | . . . Projectile . | . . . AOE 17 | . . 17 Terrain Rammed . | . . . Walls Destroyed . | . . . Machines Disabled . | . . . Actions | -11 -10 -9 --------- Run | Yrd Mat Mat Total 994 | 65 740 189 Wait 59 | . 31 28 Move 778 | 55 614 109 Hop . | . . . Pick Up 16 | 4 10 2 Fast Attach 11 | 6 4 1 Attach 8 | . 1 7 Detach . | . . . Swap 8 | . 8 . Drop 15 | . 12 3 Fire 96 | . 60 36 Melee . | . . . Ram 3 | . . 3 Kick . | . . . Crush . | . . . Escape Stasis . | . . . Rewire . | . . . Trap . | . . . Miscellaneous . | . . . Route ------- -11/Scrapyard -10/Materials (discovered 3 exits: *Mat x3) -9/Materials History --------- Turn | Location | Event 22 | -11/Scrapyard | Discovered new exit (range 16) 81 | -11/Scrapyard | Entered Materials 314 | -10/Materials | Build established: Mutant 513 | -10/Materials | Discovered new exit (range 3) 698 | -10/Materials | Discovered new exit (range 6) 755 | -10/Materials | Lost 3 parts (1u2w) 896 | -10/Materials | Discovered new exit (range 16) 1017 | -10/Materials | Build established: Scavenger-Mutant 1053 | -10/Materials | Entered another Materials area 1053 | -9/Materials | Evolved 2 slots: Propulsion x2 1277 | -9/Materials | Core integrity fell below 50% 1301 | -9/Materials | Lost 9 parts (2p4n1u2w) 1316 | -9/Materials | Core integrity fell below 20% 1371 | -9/Materials | Destroyed self with Grenade Launcher Last Messages --------------- 01243_ Lgt. Nuclear Core destroyed. 01243_ L-31 Rogue destroyed. 01245_ Med. Laser destroyed. 01247_ Acquired Lgt. Assault Rifle. 01251_ Aluminum Leg destroyed. 01259_ Lgt. Assault Rifle destroyed. 01259_ Slammed into G-34 Mercenary. 01260_ Acquired 21 matter. 01269_ Slammed into G-34 Mercenary. 01270_ Lgt. Nuclear Core destroyed. 01278_ Slammed into G-34 Mercenary. 01322_ Dropped Hcp. Storage Unit. 01332_ Dropped Med. Matter Pod. 01334_ Extracted 10 matter. 01334_ Dropped Med. Storage Unit. 01336_ Extracted 10 matter. 01339_ K-01 Serf collects debris. 01353_ Acquired Grenade Launcher. 01366_ G-34 Mercenary destroyed. 01371_ K-01 Serf collects debris. Map ----- +----------------------------------------------------+ | | | | | | | | | | | | | | | | | | | ????????????????????????????????????????????? | | ????????????????????????????????????????????? | | ????????????????????????????????????????????? | | ????????????????########????????????????????? | | ????????????????# """ #????????????????????? | | ????????????????# "T" #????????????????????? | | ????????????????# #????????????????????? | | ????????????????# #????????????????????? | | ????????????????# #????????????????????? | | ????????????????# #######??????????????? | | ????????????????#### ##?????????????? | | ????????????????# #?????????????? | | ????????????????# % #?????????????? | | ????????????????# ! g #?????????????? | | ????????????????### %= ##?????????????? | | ????????????????# [ k #?????????????? | | ????????????????# =@ # #???????????????? | | ????????????????# == # #???????????????? | | ????????????????# ## #???????????????? | | ????????????????# "T" ## #???????????????? | | ????????????????# ## #???????????????? | | ????????????############# ##??????????????? | | ???????????? [[ ??# #??????????????? | | ???????????? [[ ??# #??????????????? | | ??????????? [ #?#!! #??????????????? | | ???????????# #?# #??????????????? | | ???????????# #?# #??????????????? | | ???????????# """ """ #?### ###??????????????? | | ???????????? """ """ ????# #????????????????? | | ??????????????"" ""??????#!#?????? ????????? | | ??????????????##+######### ### """ #???? | | ??????????????# **%! %=*%% + #????? | | ??????????????# /[############ #????? | | ??????????????# #??????????????? #????? | | ??????????????# #??????????????????? #????? | | ??????????????# % #?????????????????????????? | | ??????????????# #?????????????????????????? | | ??????????????# #?????????????????????????? | | ??????????????# #?????????????????????????? | | ??????????????# #?????????????????????????? | | ??????????????# #?????????????????????????? | +----------------------------------------------------+ Best States ------------- Heat Dissipation 42 Energy Generation 14 Energy Capacity 250 Matter Stores 300 Matter Capacity 300 Sight Range 18 Terrain Scan Density 10 Armor Coverage 150 Weapon Shielding 33 Evasion (%) 55 Item Schematics ----------------- None Robot Schematics ------------------ None Fabricated ------------ Nothing Alien Tech Used ----------------- None Achievements -------------- None Challenges ------------ None Game ------ Seed MultinovaFrostKinecellerator Manual? 0 Play Time 00:21:34 Cumulative 7.2 hours Start 2024.12.30 @ 20:43:52 End 2024.12.30 @ 21:09:56 Sessions 3 Manual Loads 0 Difficulty Rogue Special Mode None Game No. 7 Rogue 7 Adventurer 0 Explorer 0 Win Type - Total 0 Types 0/0/0/0/0/0/0/0/0 Lore% 9 Gallery% 13 Achievement% 12 Wizard Run 0 Options --------- Layout 0 ASCII 0 Keyboard 0 Movement Numpad Keybinds 0 Fullscreen 1 Font 18/SmallcapsGlow Map View 112x50 Zoom Use 0% Tactical HUD 1 Map Filters NONE Filters NONE Steam 1 RUN: 0497e9da-ed50-4a79-b82d-41cbaf403d52